bitfinex/quotes_SOLUSD_20250417
["timestamp","ask_amount","ask_price","bid_price","bid_amount"]
[1744906157148,18.64964886,133.88,133.79,24.72]
[1744906157651,44.64964886,133.88,133.79,24.72]
[1744906157980,18.64964886,133.86,133.77,82.87]
[1744906158465,18.64964886,133.86,133.8,0.063]
[1744906158777,2.1685,133.87,133.8,0.063]
[1744906159151,26.14672044,133.86,133.8,0.063]
[1744906160375,26.14672044,133.86,133.8,82.933]
[1744906161273,18.67622889,133.86,133.8,82.933]
[1744906161652,7.46993351,133.87,133.81,26.28432314]
[1744906162285,7.46993351,133.87,133.81,109.15432314]
[1744906162581,7.46881768,133.89,133.82,18.64964886]
[1744906162883,7.46881768,133.89,133.82,101.51964886]
[1744906163049,26.14086189,133.89,133.83,0.28432314]
[1744906163255,37.33955336,133.91,133.82,82.87]
[1744906163470,2.77155576,133.9,133.82,82.87]
[1744906164068,18.64964886,133.89,133.8,0.063]
[1744906164953,18.64964886,133.9,133.8,0.063]
[1744906165153,44.64964886,133.87,133.8,0.063]
[1744906165366,63.49917823,133.86,133.8,0.063]
[1744906165686,26.14672044,133.86,133.8,0.063]
[1744906167357,18.64964886,133.87,133.8,0.063]
[1744906167790,18.64964886,133.85,133.8,0.063]
[1744906168089,63.35245779,133.86,133.8,0.063]
[1744906168792,2.77698714,133.85,133.8,0.063]
[1744906169174,26.0,133.83,133.8,0.063]
[1744906169373,7.47272455,133.82,133.8,0.063]
[1744906169794,63.5181587,133.82,133.74,23.983]
[1744906170088,63.5181587,133.82,133.74,0.063]
[1744906170389,26.0,133.78,133.74,0.063]
[1744906171385,26.16431186,133.77,133.74,0.063]
[1744906173083,26.0,133.75,133.73,1e-08]
[1744906173264,26.0,133.75,133.72,1e-08]
[1744906173471,7.47719455,133.74,133.72,1e-08]
[1744906175178,18.64964886,133.73,133.68,0.063]
[1744906175587,26.17409512,133.72,133.68,0.063]
[1744906175976,18.64964886,133.71,133.68,1e-08]
[1744906176301,44.64964886,133.69,133.68,1e-08]
[1744906176474,18.64964886,133.68,133.62,0.063]
[1744906176797,0.28432314,133.67,133.62,0.063]
[1744906177127,18.64964886,133.64,133.62,1e-08]
[1744906177598,7.48334954,133.63,133.62,1e-08]
[1744906179371,26.1329984,133.63,133.62,1e-08]
[1744906179771,18.64964886,133.62,133.53,6.2291]
[1744906180171,44.64964886,133.62,133.52,0.063]
[1744906180797,26.0,133.62,133.52,7.55243681]
[1744906181201,26.1917234,133.63,133.53,0.28432314]
[1744906181379,26.1917234,133.63,133.55,26.0]
[1744906181709,26.1917234,133.63,133.55,33.48777824]
[1744906182214,7.4822297,133.65,133.59,26.0]
[1744906182414,6.2353,133.72,133.6,26.0]
[1744906182579,26.0,133.71,133.6,26.0]
[1744906182979,18.69718046,133.71,133.61,0.28432314]
[1744906183179,18.69718046,133.71,133.62,26.0]
[1744906183702,26.0,133.73,133.62,26.0]
[1744906184008,45.59559879,133.71,133.66,45.59559879]
[1744906184384,26.0,133.7,133.67,45.59559879]
[1744906184582,26.0,133.7,133.63,45.59559879]
[1744906184811,26.0,133.7,133.66,45.59559879]
[1744906185018,26.0,133.7,133.67,45.59559879]
[1744906185177,45.59559879,133.72,133.68,45.59559879]
[1744906185382,45.59559879,133.72,133.64,0.28432314]
[1744906185600,45.59559879,133.71,133.67,45.59559879]
[1744906186115,45.59559879,133.74,133.69,45.59559879]
[1744906186414,45.59559879,133.73,133.68,45.59559879]
[1744906186612,45.59559879,133.72,133.67,45.59559879]
[1744906187394,45.59559879,133.71,133.66,45.59559879]
[1744906190311,45.59559879,133.7,133.65,45.59559879]
[1744906191009,45.59559879,133.69,133.64,45.59559879]
[1744906191212,45.59559879,133.7,133.65,45.59559879]
[1744906191510,26.0,133.74,133.66,45.59559879]
[1744906191806,45.59559879,133.69,133.65,45.59559879]
[1744906191992,45.59559879,133.69,133.64,45.59559879]
[1744906192891,45.59559879,133.69,133.61,108.87]
[1744906192892,45.59559879,133.69,133.65,45.59559879]
[1744906193412,45.59559879,133.7,133.65,45.59559879]
[1744906193715,45.59559879,133.71,133.66,45.59559879]
[1744906194013,45.59559879,133.7,133.65,45.59559879]
[1744906194410,45.59559879,133.71,133.66,45.59559879]
[1744906194796,45.59559879,133.7,133.65,45.59559879]
[1744906196099,18.64964886,133.73,133.65,45.59559879]
[1744906196300,0.063,133.76,133.7,45.59559879]
[1744906196635,45.65859879,133.76,133.71,45.59559879]
[1744906196921,0.063,133.76,133.72,45.59559879]
[1744906197212,0.063,133.76,133.67,0.28432314]
[1744906197517,45.59559879,133.75,133.66,140.9018]
[1744906197815,45.59559879,133.75,133.7,45.59559879]
[1744906198114,45.59559879,133.74,133.69,45.59559879]
[1744906198322,45.59559879,133.74,133.66,138.6769]
[1744906198503,45.59559879,133.74,133.69,45.59559879]
[1744906199325,45.59559879,133.73,133.68,45.59559879]
[1744906199528,18.71264886,133.76,133.69,45.59559879]
[1744906199700,45.59559879,133.74,133.69,45.59559879]
[1744906200429,0.063,133.76,133.73,45.59559879]
[1744906200799,0.063,133.76,133.74,45.59559879]
[1744906201098,0.063,133.76,133.75,45.59559879]
[1744906201297,0.063,133.76,133.71,0.28432314]
[1744906201498,0.063,133.76,133.74,45.59559879]
[1744906201822,0.063,133.76,133.71,0.28432314]
[1744906202128,0.063,133.76,133.73,45.59559879]
[1744906202308,0.063,133.76,133.7,82.87]
[1744906202503,0.063,133.76,133.69,26.0]
[1744906202710,0.063,133.76,133.72,45.59559879]
[1744906202912,0.063,133.76,133.74,45.59559879]
[1744906203114,0.063,133.76,133.75,45.59559879]
[1744906203497,0.063,133.76,133.7,45.59559879]
[1744906203498,0.063,133.76,133.74,45.59559879]
[1744906204420,0.063,133.76,133.73,45.59559879]
[1744906204728,45.59559879,133.74,133.68,23.16]
[1744906204916,45.59559879,133.71,133.66,135.11249879]
[1744906205122,45.59559879,133.74,133.69,45.59559879]
[1744906205322,45.59559879,133.73,133.68,45.59559879]
[1744906205523,45.59559879,133.74,133.69,45.59559879]
[1744906205826,45.59559879,133.73,133.68,45.59559879]
[1744906206028,18.71264886,133.76,133.68,45.59559879]
[1744906206328,45.59559879,133.74,133.69,45.59559879]
[1744906207930,45.59559879,133.72,133.66,6.6469]
[1744906208311,45.59559879,133.73,133.68,45.59559879]
[1744906208510,45.59559879,133.73,133.66,6.6469]
[1744906208511,45.59559879,133.74,133.69,45.59559879]
[1744906208712,45.59559879,133.72,133.66,6.6469]
[1744906209025,45.59559879,133.73,133.68,45.59559879]
[1744906209222,2.2319,133.76,133.66,6.6469]
[1744906209223,45.59559879,133.74,133.66,6.6469]
[1744906209531,45.59559879,133.72,133.67,45.59559879]
[1744906210034,45.59559879,133.72,133.68,45.59559879]
[1744906210832,45.59559879,133.74,133.69,45.59559879]
[1744906211034,45.59559879,133.75,133.7,45.59559879]
[1744906211217,45.59559879,133.74,133.69,45.59559879]
[1744906212629,45.59559879,133.72,133.66,6.6469]
[1744906212834,45.59559879,133.69,133.64,45.59559879]
[1744906213129,56.06930816,133.7,133.65,30.06930816]
[1744906213337,26.0,133.7,133.66,30.06930816]
[1744906213537,26.0,133.7,133.67,30.06930816]
[1744906213842,18.64964886,133.75,133.67,30.06930816]
[1744906214020,30.06930816,133.73,133.68,30.06930816]
[1744906214334,30.06930816,133.72,133.67,30.06930816]
[1744906215610,30.06930816,133.7,133.65,26.0]
[1744906215814,30.06930816,133.71,133.66,30.06930816]
[1744906216009,30.06930816,133.68,133.62,6.3695]
[1744906216212,30.06930816,133.68,133.62,36.43880816]
[1744906216441,30.06930816,133.67,133.62,6.3695]
[1744906216620,30.06930816,133.67,133.62,36.43880816]
[1744906216820,30.06930816,133.69,133.64,30.06930816]
[1744906217238,30.06930816,133.68,133.63,30.06930816]
[1744906217622,30.06930816,133.68,133.62,6.3695]
[1744906217820,30.06930816,133.68,133.63,30.06930816]
[1744906218935,30.06930816,133.67,133.62,30.06930816]
[1744906219312,56.06930816,133.68,133.63,30.06930816]
[1744906219716,0.28432314,133.75,133.65,30.06930816]
[1744906219925,22.4,133.75,133.67,30.06930816]
[1744906220138,2.2319,133.76,133.71,30.06930816]
[1744906220441,30.06930816,133.75,133.7,30.06930816]
[1744906220644,30.06930816,133.73,133.66,26.0]
[1744906220830,30.06930816,133.73,133.68,30.06930816]
[1744906221033,30.06930816,133.73,133.66,26.0]
[1744906221034,30.06930816,133.72,133.66,26.0]
[1744906221255,30.06930816,133.68,133.64,22.4]
[1744906221427,30.06930816,133.69,133.64,30.06930816]
[1744906221622,30.06930816,133.69,133.65,30.06930816]
[1744906221825,56.06930816,133.7,133.65,30.06930816]
[1744906222257,30.06930816,133.69,133.64,30.06930816]
[1744906222556,26.0,133.7,133.61,62.44630816]
[1744906222557,30.06930816,133.66,133.61,62.44630816]
[1744906223037,30.06930816,133.67,133.62,30.06930816]
[1744906223238,30.06930816,133.66,133.61,30.06930816]
[1744906224326,30.06930816,133.66,133.59,22.4]
[1744906224528,30.06930816,133.66,133.61,30.06930816]
[1744906224935,30.06930816,133.65,133.59,22.4]
[1744906225243,30.06930816,133.65,133.6,30.06930816]
[1744906225445,7.4816699,133.66,133.62,30.06930816]
[1744906225942,26.18584467,133.66,133.62,30.06930816]
[1744906226337,56.25515283,133.66,133.61,30.06930816]
[1744906227331,26.18584467,133.66,133.62,30.06930816]
[1744906228046,26.18584467,133.66,133.56,0.03]
[1744906228047,74.71895702,133.64,133.56,0.03]
[1744906228231,30.06930816,133.62,133.57,30.06930816]
[1744906228429,30.06930816,133.63,133.58,30.06930816]
[1744906228658,56.06930816,133.64,133.59,30.06930816]
[1744906228848,56.06930816,133.64,133.56,0.03]
[1744906229027,56.06930816,133.64,133.59,30.06930816]
[1744906229227,2.78585958,133.63,133.59,30.06930816]
[1744906229823,37.55321775,133.62,133.57,30.06930816]
[1744906230028,30.06930816,133.61,133.56,30.09930816]
[1744906230738,30.06930816,133.6,133.56,0.03]
[1744906230930,30.06930816,133.59,133.56,0.03]
[1744906231835,30.06930816,133.57,133.56,0.03]
[1744906232036,48.71895702,133.57,133.56,1e-08]
[1744906233732,56.2056681,133.57,133.56,1e-08]
[1744906235159,7.48671108,133.57,133.56,1e-08]
[1744906235544,37.55601924,133.57,133.56,1e-08]
[1744906235936,56.2056681,133.57,133.56,1e-08]
[1744906237734,56.48999124,133.57,133.56,1e-08]
[1744906237933,88.7968994,133.57,133.56,1e-08]
[1744906238356,58.72759124,133.57,133.56,1e-08]
[1744906239554,74.71895702,133.53,133.52,1e-08]
[1744906240059,82.20791081,133.53,133.52,1e-08]
[1744906240640,33.48895379,133.53,133.52,1e-08]
[1744906241144,63.55826195,133.53,133.52,1e-08]
[1744906241342,82.20791081,133.53,133.52,1e-08]
[1744906242256,37.55826195,133.53,133.52,1e-08]
[1744906242443,7.48895379,133.53,133.52,1e-08]
[1744906245668,18.64964886,133.59,133.52,30.06930817]
[1744906245866,18.64964886,133.59,133.54,30.06930816]
[1744906245867,48.71895702,133.59,133.54,30.06930816]
[1744906246063,52.19760479,133.6,133.55,30.06930816]
[1744906246064,56.26691295,133.6,133.55,30.06930816]
[1744906246366,26.20152717,133.58,133.54,30.06930816]
[1744906246953,30.06930816,133.57,133.52,6.62580001]
[1744906247180,30.06930816,133.57,133.52,36.69510817]
[1744906247362,30.06930816,133.57,133.53,30.06930816]
[1744906247569,56.27083533,133.58,133.53,30.06930816]
[1744906248171,26.20152717,133.58,133.53,30.06930816]
[1744906248473,26.20152717,133.58,133.54,30.06930816]
[1744906248673,18.64964886,133.57,133.53,30.06930816]
[1744906249778,48.71895702,133.57,133.52,36.69510817]
[1744906250074,18.933972,133.57,133.52,1e-08]
[1744906250247,18.64964886,133.57,133.52,1e-08]
[1744906250448,7.48727163,133.56,133.53,30.06930816]
[1744906250674,7.48727163,133.56,133.54,30.06930816]
[1744906250870,7.48727163,133.56,133.53,30.06930816]
[1744906251060,26.20545072,133.56,133.52,30.06930817]
[1744906251462,30.06930816,133.54,133.52,1e-08]
[1744906251849,56.27475888,133.56,133.52,1e-08]
[1744906252862,26.20545072,133.56,133.52,1e-08]
[1744906253477,30.06930816,133.55,133.52,1e-08]
[1744906253978,30.06930816,133.54,133.52,1e-08]
[1744906254475,48.71895702,133.53,133.52,1e-08]
[1744906254690,56.20791081,133.53,133.52,1e-08]
[1744906254860,26.13860265,133.53,133.52,1e-08]
[1744906256287,7.48895379,133.53,133.52,1e-08]
[1744906257374,56.20791081,133.53,133.52,1e-08]
[1744906260888,56.49223395,133.53,133.52,1e-08]
[1744906261101,18.933972,133.52,133.49,0.063]
[1744906261304,18.85397292,133.5,133.49,1e-08]
[1744906261478,26.34460962,133.5,133.49,1e-08]
[1744906262289,7.4906367,133.5,133.49,1e-08]
[1744906262681,44.99425848,133.5,133.49,1e-08]
[1744906263283,56.30239398,133.5,133.49,1e-08]
[1744906263478,26.14028556,133.5,133.49,1e-08]
[1744906264296,56.30239398,133.5,133.49,1e-08]
[1744906265273,18.64964886,133.49,133.48,1e-08]
[1744906265475,26.1408467,133.49,133.48,1e-08]
[1744906265893,18.72277233,133.53,133.48,30.16210843]
[1744906266096,18.72277233,133.53,133.52,30.16210842]
[1744906266295,7.48839299,133.54,133.52,30.16210842]
[1744906266697,7.48839299,133.54,133.48,6.29870001]
[1744906266698,7.48839299,133.54,133.51,30.16210842]
[1744906267284,56.37148388,133.54,133.49,30.16210842]
[1744906267685,26.20937546,133.54,133.5,30.16210842]
[1744906268396,7.48839299,133.54,133.53,30.16210842]
[1744906269806,26.20152717,133.58,133.53,30.16210842]
[1744906270004,26.20152717,133.58,133.55,30.16210842]
[1744906270300,26.20152717,133.58,133.49,56.16210842]
[1744906270301,7.48615062,133.58,133.57,30.16210842]
[1744906270904,7.48615062,133.58,133.56,30.16210842]
[1744906271788,0.063,133.59,133.57,30.16210842]
[1744906271992,0.063,133.59,133.56,30.16210842]
[1744906272396,0.063,133.59,133.52,108.87]
[1744906272598,48.87475728,133.59,133.55,30.16210842]
[1744906272908,18.71264886,133.59,133.55,30.16210842]
[1744906273607,0.063,133.59,133.56,30.16210842]
[1744906273809,0.063,133.59,133.55,30.16210842]
[1744906274599,30.22510842,133.59,133.55,30.16210842]
[1744906275106,18.71264886,133.59,133.55,30.16210842]
[1744906275900,0.063,133.59,133.56,30.16210842]
[1744906276819,0.063,133.59,133.55,30.16210842]
[1744906277309,0.063,133.59,133.56,30.16210842]
[1744906277701,30.22510842,133.59,133.52,26.0]
[1744906277918,26.20152717,133.58,133.55,30.16210842]
[1744906278732,26.20152717,133.58,133.57,30.16210842]
[1744906279017,26.20152717,133.58,133.56,30.16210842]
[1744906279212,7.48615062,133.58,133.57,30.16210842]
[1744906279913,0.063,133.59,133.57,30.16210842]
[1744906280100,0.063,133.59,133.58,30.16210842]
[1744906282514,0.063,133.59,133.55,32.0972]
[1744906282718,0.063,133.59,133.52,91.6811]
[1744906282719,18.71264886,133.59,133.52,91.6811]
[1744906282898,0.063,133.59,133.56,30.16210842]
[1744906283714,0.063,133.59,133.57,30.16210842]
[1744906284013,0.063,133.59,133.58,30.16210842]
[1744906285009,0.063,133.59,133.57,30.16210842]
[1744906285522,0.063,133.59,133.58,36.63630842]
[1744906285716,7.5452297,133.65,133.64,30.16210842]
[1744906286098,0.063,133.65,133.64,30.16210842]
[1744906287403,0.063,133.7,133.67,28.0901]
[1744906287615,0.063,133.77,133.75,26.0]
[1744906287916,0.063,133.77,133.75,30.16210842]
[1744906288419,0.063,133.77,133.72,0.28432314]
[1744906288604,0.063,133.77,133.75,30.16210842]
[1744906289006,0.063,133.77,133.73,26.0]
[1744906289203,0.063,133.77,133.75,30.16210842]
[1744906289414,0.063,133.77,133.75,56.16210842]
[1744906290223,0.063,133.77,133.75,56.44643156]
[1744906290614,0.063,133.77,133.75,56.16210842]
[1744906292017,0.063,133.77,133.75,30.16210842]
[1744906292412,0.063,133.77,133.7,30.16210842]
[1744906292608,30.22510842,133.77,133.72,30.16210842]
[1744906293219,18.71264886,133.77,133.73,30.16210842]
[1744906293403,0.063,133.77,133.75,30.16210842]
[1744906293605,0.063,133.78,133.77,26.0]
[1744906293819,0.063,133.78,133.77,86.60853998]
[1744906294327,0.063,133.78,133.77,86.32421684]
[1744906296029,0.063,133.78,133.77,60.32421684]
[1744906296227,0.063,133.78,133.77,68.08405765]
[1744906296418,0.063,133.8,133.77,74.51125765]
[1744906296722,0.063,133.8,133.79,56.16210842]
[1744906297307,0.063,133.8,133.79,30.16210842]
[1744906298820,0.063,133.8,133.77,30.16210842]
[1744906299016,0.063,133.8,133.78,30.16210842]
[1744906299608,0.063,133.8,133.76,30.16210842]
[1744906300231,18.64964886,133.79,133.7,30.16210842]
[1744906300541,30.16210842,133.75,133.7,30.16210842]
[1744906300827,30.16210842,133.74,133.69,30.16210842]
[1744906301210,30.16210842,133.75,133.7,30.16210842]
[1744906301517,30.16210842,133.73,133.68,30.16210842]
[1744906301916,30.16210842,133.76,133.71,30.16210842]
[1744906302121,157.08159706,133.77,133.72,30.16210842]
[1744906302431,63.54190025,133.77,133.74,30.16210842]
[1744906302615,26.16431186,133.77,133.75,30.16210842]
[1744906302817,7.47551767,133.77,133.76,30.16210842]
[1744906304017,18.74880204,133.8,133.76,30.16210842]
[1744906304216,0.063,133.8,133.78,30.16210842]
[1744906305346,0.063,133.8,133.76,30.16210842]
[1744906305634,0.063,133.8,133.73,30.16210842]
[1744906305635,30.16210842,133.78,133.73,30.16210842]
[1744906305845,48.81175728,133.79,133.74,30.16210842]
[1744906306138,26.16235609,133.78,133.72,20.3]
[1744906306320,26.16235609,133.78,133.74,30.16210842]
[1744906307133,26.16235609,133.78,133.72,20.3]
[1744906307335,26.16235609,133.78,133.74,30.16210842]
[1744906307539,0.063,133.8,133.77,30.16210842]
[1744906307742,0.063,133.8,133.79,30.16210842]
[1744906307929,7.53696242,133.8,133.79,30.16210842]
[1744906308115,0.063,133.8,133.79,30.16210842]
[1744906308521,7.53684155,133.8,133.77,108.87]
[1744906308716,7.53684155,133.8,133.79,30.16210842]
[1744906309027,0.063,133.8,133.79,30.16210842]
[1744906309337,7.53684155,133.8,133.79,30.16210842]
[1744906309529,0.063,133.8,133.79,30.16210842]
[1744906309937,0.063,133.8,133.77,82.87]
[1744906310144,0.063,133.8,133.79,30.16210842]
[1744906311125,0.063,133.8,133.76,6.1939]
[1744906311323,0.063,133.8,133.78,30.16210842]
[1744906311843,0.063,133.8,133.77,30.16210842]
[1744906312423,0.063,133.8,133.78,30.16210842]
[1744906313143,0.063,133.8,133.79,30.16210842]
[1744906314751,0.063,133.8,133.78,30.16210842]
[1744906314958,0.063,133.8,133.79,30.16210842]
[1744906315154,0.063,133.8,133.77,30.16210842]
[1744906315328,0.063,133.8,133.78,30.16210842]
[1744906317749,0.063,133.8,133.77,30.16210842]
[1744906318247,18.64964886,133.78,133.72,20.363]
[1744906318425,30.16210842,133.77,133.72,20.363]
[1744906318628,56.22510842,133.8,133.75,30.16210842]
[1744906319035,48.81175728,133.79,133.72,20.363]
[1744906319248,48.81175728,133.79,133.74,30.16210842]
[1744906319653,56.22510842,133.8,133.75,30.16210842]
[1744906320031,56.32250903,133.79,133.74,30.16210842]
[1744906321539,26.16040061,133.79,133.76,30.16210842]
[1744906321740,56.32250903,133.79,133.72,20.363]
[1744906321939,48.81175728,133.77,133.72,30.22510842]
[1744906322142,56.32837635,133.76,133.72,0.063]
[1744906322435,48.81175728,133.73,133.64,82.87]
[1744906322638,30.16210842,133.68,133.61,84.9454]
[1744906322853,30.16210842,133.69,133.64,30.16210842]
[1744906323055,30.16210842,133.7,133.65,30.16210842]
[1744906323232,45.60617634,133.7,133.65,45.60617634]
[1744906323655,45.60617634,133.69,133.64,45.60617634]
[1744906324150,71.78810332,133.68,133.63,45.60617634]
[1744906324354,45.60617634,133.66,133.61,45.60617634]
[1744906324546,26.18192698,133.68,133.63,45.60617634]
[1744906324750,71.78810332,133.68,133.63,45.60617634]
[1744906324945,45.60617634,133.66,133.61,45.60617634]
[1744906325338,45.60617634,133.65,133.6,45.60617634]
[1744906325540,45.60617634,133.62,133.55,0.063]
[1744906325838,45.60617634,133.63,133.58,45.60617634]
[1744906326033,26.19564403,133.61,133.57,45.60617634]
[1744906326244,26.19564403,133.61,133.58,45.60617634]
[1744906326560,71.80182037,133.61,133.56,45.60617634]
[1744906326763,71.80182037,133.61,133.55,0.063]
[1744906326764,45.60617634,133.59,133.55,45.66917634]
[1744906326944,45.60617634,133.6,133.55,45.66917634]
[1744906328057,7.48559023,133.59,133.57,45.60617634]
[1744906328261,7.48446972,133.61,133.58,45.60617634]
[1744906328666,7.48446972,133.61,133.57,45.60617634]
[1744906329033,7.48446972,133.61,133.58,45.60617634]
[1744906329960,71.79988837,133.62,133.58,45.60617634]
[1744906330354,71.79988837,133.62,133.57,45.60617634]
[1744906331070,71.79988837,133.62,133.56,45.60617634]
[1744906331071,64.2558252,133.61,133.56,45.60617634]
[1744906331281,45.60617634,133.58,133.55,0.063]
[1744906331559,45.60617634,133.57,133.55,0.063]
[1744906331959,7.48727163,133.56,133.55,0.063]
[1744906332638,53.09344797,133.56,133.55,0.063]
[1744906333152,7.48727163,133.56,133.55,0.063]
[1744906334646,7.48559023,133.59,133.55,45.66917634]
[1744906334844,7.48559023,133.59,133.58,45.60617634]
[1744906335148,26.19664628,133.61,133.58,45.60617634]
[1744906335345,26.19664628,133.61,133.59,45.60617634]
[1744906335577,7.48278958,133.64,133.6,45.60617634]
[1744906336058,7.48278958,133.64,133.61,45.60617634]
[1744906336646,64.2558252,133.62,133.56,82.87]
[1744906336842,45.60617634,133.61,133.57,45.60617634]
[1744906337043,45.60617634,133.61,133.55,0.063]
[1744906337044,45.60617634,133.58,133.55,0.063]
[1744906337264,53.09344797,133.56,133.55,0.063]
[1744906337664,53.09344797,133.56,133.5,6.651]
[1744906337665,90.46127592,133.56,133.5,6.651]
[1744906337962,90.46127592,133.56,133.51,45.63617634]
[1744906338155,44.85509958,133.56,133.52,45.60617634]
[1744906338355,90.46127592,133.56,133.51,45.63617634]
[1744906339756,45.60617634,133.55,133.51,45.63617634]
[1744906339957,90.46127592,133.56,133.51,45.63617634]
[1744906340361,45.60617634,133.54,133.51,0.03]
[1744906340578,18.64964886,133.51,133.49,0.03]
[1744906340872,64.2558252,133.51,133.49,0.03]
[1744906341171,18.64964886,133.49,133.48,1e-08]
[1744906341362,97.74702304,133.49,133.48,1e-08]
[1744906341559,71.60617634,133.47,133.45,1e-08]
[1744906341764,64.2558252,133.46,133.45,1e-08]
[1744906341957,64.2558252,133.46,133.43,1e-08]
[1744906342274,64.2558252,133.44,133.43,1e-08]
[1744906343381,98.03415313,133.44,133.43,1e-08]
[1744906343874,52.14365365,133.44,133.43,1e-08]
[1744906344065,97.74982999,133.44,133.43,1e-08]
[1744906344265,98.03415313,133.44,133.43,1e-08]
[1744906344674,72.03415313,133.44,133.43,1e-08]
[1744906345175,64.2558252,133.4,133.35,45.66917634]
[1744906345365,26.2408157,133.38,133.35,0.063]
[1744906345568,71.84699204,133.38,133.35,0.063]
[1744906346055,26.2408157,133.38,133.35,0.063]
[1744906346656,26.2408157,133.38,133.37,45.60617634]
[1744906347071,7.49625187,133.4,133.37,45.60617634]
[1744906347309,7.49625187,133.4,133.39,45.60617634]
[1744906347497,18.74032138,133.41,133.39,45.60617634]
[1744906347973,7.49512816,133.42,133.4,45.60617634]
[1744906348155,7.49512816,133.42,133.41,45.60617634]
[1744906348856,7.49344323,133.45,133.37,6.4224]
[1744906349276,64.2558252,133.42,133.35,0.063]
[1744906349457,18.64964886,133.38,133.35,0.063]
[1744906349653,64.2558252,133.38,133.35,0.063]
[1744906350555,44.64964886,133.38,133.35,1e-08]
[1744906350890,64.2558252,133.37,133.35,1e-08]
[1744906351489,7.49850029,133.36,133.35,1e-08]
[1744906352071,7.49850029,133.36,133.35,45.60617635]
[1744906352575,18.73908189,133.42,133.35,91.21235269]
[1744906352771,18.73908189,133.42,133.38,45.60617634]
[1744906353091,26.23421005,133.42,133.41,45.60617634]
[1744906353262,7.49512816,133.42,133.41,45.60617634]
[1744906353615,26.2281133,133.45,133.41,45.60617634]
[1744906353786,7.49344323,133.45,133.43,45.60617634]
[1744906353981,7.49344323,133.45,133.44,45.60617634]
[1744906354208,7.49344323,133.45,133.38,6.2241]
[1744906354509,7.49344323,133.45,133.42,45.60617634]
[1744906355005,26.22705132,133.45,133.41,45.60617634]
[1744906355211,26.22705132,133.45,133.42,45.60617634]
[1744906355383,18.73023759,133.48,133.44,45.60617634]
[1744906355587,18.64964886,133.47,133.44,45.60617634]
[1744906355995,18.73023759,133.48,133.45,45.60617634]
[1744906356392,18.64964886,133.47,133.43,45.60617634]
[1744906357080,18.64964886,133.47,133.39,82.87]
[1744906357287,18.64964886,133.47,133.43,45.60617634]
[1744906357487,7.49288176,133.46,133.42,45.60617634]
[1744906357884,64.2558252,133.45,133.38,26.0841]
[1744906358205,64.2558252,133.45,133.41,45.60617634]
[1744906358402,64.2558252,133.45,133.36,82.87]
[1744906358603,45.60617634,133.43,133.38,45.60617634]
[1744906358800,45.60617634,133.42,133.37,45.60617634]
[1744906359007,45.60617634,133.42,133.38,45.60617634]
[1744906359586,26.23491491,133.41,133.37,45.60617634]
[1744906359802,45.60617634,133.4,133.35,1e-08]
[1744906359992,45.60617634,133.39,133.35,1e-08]
[1744906360590,45.60617634,133.39,133.35,45.60617635]
[1744906361003,18.64964886,133.39,133.35,45.60617635]
[1744906361203,90.2558252,133.36,133.35,1e-08]
[1744906361606,97.75432549,133.36,133.35,1e-08]
[1744906362491,98.03864863,133.36,133.35,1e-08]
[1744906364606,145.77402497,133.36,133.35,1e-08]
[1744906364818,152.19092497,133.36,133.35,1e-08]
[1744906365114,18.64964886,133.31,133.29,0.03]
[1744906365415,64.2558252,133.31,133.29,0.03]
[1744906365913,7.50187546,133.3,133.29,0.03]
[1744906366213,71.75770066,133.3,133.29,0.03]
[1744906366592,26.15152432,133.3,133.29,0.03]
[1744906366790,71.75770066,133.3,133.29,0.03]
[1744906366996,7.50187546,133.3,133.29,0.03]
[1744906367405,26.25656413,133.3,133.23,26.0]
[1744906367615,26.25656413,133.3,133.26,45.60617634]
[1744906368392,71.86274047,133.3,133.23,26.0]
[1744906368589,26.25656413,133.3,133.26,45.60617634]
[1744906368793,64.2558252,133.29,133.21,48.23574284]
[1744906369114,64.2558252,133.29,133.24,45.60617634]
[1744906369296,18.64964886,133.27,133.23,45.60617634]
[1744906369702,26.2664165,133.25,133.21,48.23574284]
[1744906370112,26.2664165,133.25,133.21,2.6295665]
[1744906370413,26.2664165,133.25,133.21,48.23574284]
[1744906370620,26.2664165,133.25,133.22,45.60617634]
[1744906371095,26.2664165,133.25,133.23,45.60617634]
[1744906371298,7.50469043,133.25,133.21,2.6295665]
[1744906371514,26.0,133.29,133.24,45.60617634]